Cogmind - Beta 16 @@@ ROGUE MODE // 2025.11.22 @ 17:35:29 Player: Johnny5001 Result: Destroyed by Y-64 Sentinel with KE Penetrator Performance ------------- Evolutions (5) 2500 Regions Visited (5) 1000 Robots Destroyed (46) 230 Value Destroyed (1270) 1270 Prototype IDs (26) 520 Alien Tech Used (0) 0 Bonus (1237) 1237 TOTAL SCORE: 6757 Bonus ------- Follower Combat Kills 437 Registered with UFD 300 Met Optimus in HQ 500 Cogmind --------- Core Integrity 0/1000 Matter 300/300 Energy 599/600 System Corruption 45% Temperature Cool (3) Movement Flying (35) Location -5/Extension Parts ------- > --- POWER (1) -------- (None) > --- PROPULSION (5) --- VTOL Module > --- UTILITY (7) ------ Advanced Energy Well Enhanced Optical Array Advanced Signal Interpreter Melee Analysis Suite Advanced Melee Analysis Suite Improved Hacking Suite Advanced System Shield > --- WEAPON (4) ------- (None) > --- INVENTORY (5) ---- Micro Fission Core Carbon-fiber Leg Insulated Plating Autogun Scythe Peak State ------------ > --- POWER ------------ Meta Core > --- PROPULSION ------- Light Treads Flexi-carbon Leg Flexi-carbon Leg Flexi-carbon Leg Antigrav System > --- UTILITY ---------- Medium Storage Unit Improved Target Analyzer Transmission Jammer Jamming Amplifier Core Shielding Hardened Light Armor Plating Improved Component Analysis Suite > --- WEAPON ----------- Disruptor Cannon Heavy Plasma Cannon Axe Power Sword Power Sword > --- INVENTORY -------- Subdweller Power Source Wheel Armored Huge Wheel Improved Heat Sink Field Recycling Unit Heavy Plasma Cannon Gauss Cannon Proton Missile Launcher Dirty Datajack [Rating: 86] Favorites ----------- Power Subdweller Power Source Engine Subdweller Power Source Power Core Micro Fission Core Propulsion VTOL Module Treads Light Treads Leg Flexi-carbon Leg Wheel Wheel Hover Unit Improved Gravmag System Flight Unit VTOL Module Utility Medium Storage Unit Device Field Recycling Unit Storage Medium Storage Unit Processor Enhanced Optical Array Hackware Improved Hacking Suite Protection Insulated Plating Weapon Power Sword Energy Gun Thermic Laser Energy Cannon Disruptor Cannon Ballistic Gun Heavy Machine Gun Ballistic Cannon Gauss Cannon Launcher Proton Missile Launcher Special Weapon Improved Remote Datajack Impact Weapon Impact Mace Slashing Weapon Power Sword Special Melee Weapon Improved Datajack Build | -11 -10 -10 -7 -5 -5 ------- Run | Yrd Mat Sub Scr Fac Ext Slots Evolved 10 | . . . . 10 . Power . | . . . . . . Propulsion 3 | . . . . 3 . Utility 5 | . . . . 5 . Weapon 2 | . . . . 2 . Parts Attached 88 | 7 3 3 14 42 19 Power 7 | 1 . 1 . 3 2 Engine 4 | 1 . 1 . 1 1 Core 3 | . . . . 2 1 Reactor . | . . . . . . Propulsion 24 | 2 2 . 3 10 7 Treads 3 | 2 . . . 1 . Leg 4 | . . . 2 2 . Wheel 4 | . 2 . . . 2 Hover 2 | . . . . 1 1 Flight 11 | . . . 1 6 4 Utility 31 | 2 1 . 6 17 5 Device 9 | 1 . . 3 4 1 Storage 8 | 1 1 . 3 . 3 Processor 9 | . . . . 9 . Hackware 2 | . . . . 1 1 Protection 3 | . . . . 3 . Artifact . | . . . . . . Weapon 26 | 2 . 2 5 12 5 Energy Gun 2 | . . . 2 . . Energy Cannon 2 | . . . . 2 . Ballistic Gun 6 | 2 . 1 1 2 . Ballistic Cannon 2 | . . 1 1 . . Launcher 2 | . . . . 1 1 Special Weapon 2 | . . . 1 1 . Impact Weapon 1 | . . . . 1 . Slashing Weapon 8 | . . . . 4 4 Piercing Weapon . | . . . . . . Special Melee Weapon 1 | . . . . 1 . Unidentified Prototypes 1 | . . . . 1 . Corrupted Parts 5 | . . . . . 5 System Corruption 45 | . . . . . 45 Parts Lost 26 | . . . 1 11 14 Power . | . . . . . . Propulsion 16 | . . . . 7 9 Utility 5 | . . . . 4 1 Weapon 5 | . . . 1 . 4 Highest Loss Streak 7 | . . . 1 7 5 To Critical Strikes . | . . . . . . Average Backups 6 | 1 5 7 9 5 4 Power . | . . . . . 1 Propulsion 1 | 1 2 3 2 1 . Utility 2 | . 2 2 2 1 1 Weapon 1 | . . . 1 1 1 Tool/Special . | . . . . . . Unused Backups 14 | . . 2 3 6 3 Power 1 | . . . . 1 . Propulsion 3 | . . . 1 1 1 Utility 5 | . . 2 1 2 . Weapon 4 | . . . 1 1 2 Tool/Special 1 | . . . . 1 . Average Slot Usage (%) 90 | . 100 99 98 78 83 Engine 7 | . 14 14 14 . . Core 1 | . . . . 4 4 Treads 7 | . 4 10 13 3 . Leg 3 | . . . 1 11 . Wheel 7 | . 23 17 13 . . Flight 6 | . . . . 8 18 Device 9 | . 14 14 12 10 . Storage 8 | . 14 14 14 3 . Processor 8 | . . . . 10 26 Hackware 1 | . . . . . 7 Protection 1 | . . . . 2 3 Energy Cannon 1 | . . . . 4 . Ballistic Gun 9 | . 28 21 13 2 . Ballistic Cannon 6 | . . 6 13 . . Slashing Weapon 5 | . . . . 10 12 Peak Build Rating 86 | 7 7 12 27 86 75 Average Rating 39 | 5 7 9 18 64 65 On Entrance 20 | . 7 7 12 22 72 Avg Prop Armor Cover (%) 10 | . . 10 11 7 11 Naked Turns . | . . . . . . Heaviest Build 52 | 12 17 23 35 52 26 Greatest Support 80 | 40 40 20 40 80 25 Greatest Overweight (x) 3 | . . 2 3 3 2 Average Overweight (x) . | . . 1 2 . . Largest Inventory Capacity 20 | 8 10 10 20 10 8 Average Capacity 8 | 6 9 10 10 8 5 Most Carried 10 | 2 6 10 10 10 5 Average Carried 7 | 1 5 7 9 6 4 Final Capacity 10 | 8 10 10 10 5 5 Final Carried 10 | 2 6 9 10 5 5 Class Distribution -------------------- 68% | Mutant 15% | Scavenger-Sprinter 5% | Hacker-Mutant 4% | Commander-Sprinter 3% | Scavenger-Ninja Dominant Class ---------------- Mutant | -10/Materials Mutant | -10/Subcaves Mutant | -7/Scraptown Mutant | -5/Factory Scavenger-Sprinter | -5/Extension Resources | -11 -10 -10 -7 -5 -5 ----------- Run | Yrd Mat Sub Scr Fac Ext Matter Collected 1584 | 147 . 221 80 590 546 Remotely . | . . . . . . Salvage Created 2462 | 47 . . . 1253 1162 Parts 103 | 6 . . . 54 43 Haulers Intercepted 3 | . . . . 2 1 Recyclers Shooed 3 | . . . . 1 2 Parts Field Recycled 5 | . . . 5 . . Retrieved Matter 22 | . . . 22 . . Parts Self-Destructed . | . . . . . . Prevented . | . . . . . . Parts Restored . | . . . . . . Kills | -11 -10 -10 -7 -5 -5 ------- Run | Yrd Mat Sub Scr Fac Ext Combat Hostiles Destroyed 23 | . . . . 13 10 Melee 18 | . . . . 10 8 AOE 4 | . . . . 2 2 Classes Destroyed 13 | 1 . . . 11 1 Worker 5 | . . . . 3 2 Builder 3 | . . . . 1 2 Tunneler 2 | 2 . . . . . Hauler 3 | . . . . 2 1 Recycler 6 | . . . . 2 4 Operator 1 | . . . . . 1 Watcher 3 | . . . . 2 1 Swarmer 10 | . . . . 4 6 Grunt 6 | . . . . 4 2 Brawler 1 | . . . . 1 . Duelist 1 | . . . . 1 . Sentry 3 | . . . . 1 2 Programmer 2 | . . . . 2 . Best Kill Streak 7 | 2 . . . 6 7 Combat Bots Only 4 | . . . . 3 4 Max Kills in Single Turn 3 | 1 . . . 1 3 Gunslinging . | . . . . . . Exploded 2 | . . . . 1 2 Melee 1 | . . . . 1 1 Uniques/NPCs Destroyed . | . . . . . . Combat | -11 -10 -10 -7 -5 -5 -------- Run | Yrd Mat Sub Scr Fac Ext Hostile Shots Fired 265 | . . . 18 137 110 Missed 92 | . . . 2 50 40 Hits 173 | . . . 16 87 70 Melee 10 | . . . . 10 . Projectile 163 | . . . 16 77 70 AOE 1 | . . . . 1 . Critical Strikes 5 | . . . . 3 2 Damage Taken 3676 | . . 55 287 1954 1380 Core 1090 | . . 24 45 341 680 Absorbed by Shields 92 | . . . . . 92 Ignored by Resistances 14 | . . . . 7 7 Core Remaining (%) 86 | 100 . . 72 . . Volleys Fired 56 | 6 . 9 . 13 28 Largest 2 | 2 . 2 . 2 1 Hottest 171 | 40 . 40 . 171 46 Shots Fired 64 | 12 . 10 . 14 28 Gun 15 | 12 . 2 . 1 . Cannon 15 | . . 8 . 7 . Launcher 16 | . . . . 4 12 Special 18 | . . . . 2 16 Kinetic 23 | 12 . 10 . 1 . Thermal 1 | . . . . 1 . Explosive . | . . . . . . Electromagnetic 22 | . . . . 10 12 Robot Hit Streak 8 | 5 . 4 . 8 8 Robot Miss Streak 1 | 1 . . . 1 1 Penetration Max . | . . . . . . Secondary Targets . | . . . . . . Shots Hit Robots 110 | 7 . 2 . 59 42 Core Hits 55 | 4 . 2 . 26 23 Critical Kills . | . . . . . . Critical Parts Destroyed . | . . . . . . Critical Strikes 8 | . . . . 7 1 Sever 8 | . . . . 7 1 Melee Attacks 151 | . . . . 106 45 Impact . | . . . . . . Slashing 151 | . . . . 106 45 Piercing . | . . . . . . Sneak Attacks 19 | . . . . 12 7 Combat Hostiles . | . . . . . . Follow-up Attacks 15 | . . . . 10 5 Damage Inflicted 5050 | 83 . 23 18 2864 2062 Guns 106 | 83 . 23 . . . Cannons 30 | . . . . 30 . Explosions 859 | . . . . 240 619 Melee 4037 | . . . . 2594 1443 Ramming 18 | . . . 18 . . Kinetic 106 | 83 . 23 . . . Thermal 87 | . . . . . 87 Explosive . | . . . . . . Electromagnetic 802 | . . . . 270 532 Impact . | . . . . . . Slashing 4037 | . . . . 2594 1443 Piercing . | . . . . . . Highest Corruption 49 | . . . . 5 49 Average Corruption 11 | . . . . 4 15 Corruption Purged 5 | . . . . . 5 Corruption Blocked . | . . . . . . Effects 48 | . . . . 12 36 Message Errors 12 | . . . . 4 8 Matter Fused 10 | . . . . 2 8 Heat Flow Errors 3 | . . . . 1 2 Energy Discharges 6 | . . . . 2 4 Data Loss (minor) 7 | . . . . 2 5 Data Loss (major) 2 | . . . . 1 1 Alerts 3 | . . . . . 3 Misdirections 5 | . . . . . 5 Overload Shots . | . . . . . . Overflow Damage 296 | . . . . 193 103 Projectiles . | . . . . . . Explosions 36 | . . . . . 36 Melee 260 | . . . . 193 67 Knockbacks . | . . . . . . Impact . | . . . . . . Kinetic . | . . . . . . Secondary . | . . . . . . Self-Inflicted Damage . | . . . . . . Shots . | . . . . . . Rammed . | . . . . . . Targets Rammed 7 | . . . 7 . . Kicked 7 | . . . 7 . . Crushed . | . . . . . . Highest Temperature 293 | . . . . 293 147 Average Temperature 69 | . . . . 89 41 Received Heat Transfer 447 | . . . 144 153 150 Siege Activations . | . . . . . . Martial Activations . | . . . . . . Shielding Activations . | . . . . . . Robots Disrupted . | . . . . . . Combat Hostiles . | . . . . . . Robots Corrupted 1 | . . . . 1 . Combat Hostiles 1 | . . . . 1 . Parts Fried . | . . . . . . Impact Corruptions . | . . . . . . Robots Melted . | . . . . . . Combat Hostiles . | . . . . . . Parts Melted . | . . . . . . Heat Transferred 50 | . . . . . 50 Parts Sabotaged . | . . . . . . Parts Stolen . | . . . . . . Parts Stripped . | . . . . . . Power Chain Reactions 1 | . . . . . 1 Alert | -11 -10 -10 -7 -5 -5 ------- Run | Yrd Mat Sub Scr Fac Ext Maximum Alert Level 1 | . . . . . 1 Low Security (%) 96 | 100 100 . . 100 91 Level 1 3 | . . . . . 8 Level 2 . | . . . . . . Level 3 . | . . . . . . Level 4 . | . . . . . . Level 5 . | . . . . . . High Security . | . . . . . . Max Security . | . . . . . . Peak Influence 246 | 10 5 . . 185 246 Initial 76 | . . . . . 76 Average 73 | 1 . . . 62 98 Influence Increases 1485 | 10 7 . . 641 827 Destroy 0b10 Robot/C 680 | . . . . 260 420 Destroy 0b10 Robot/NC 120 | 10 . . . 50 60 Destroy Leader 92 | . . . . 48 44 Allied During Kill 54 | . . . . . 54 Successful Hack 103 | . 7 . . 77 19 Disable Machine 30 | . . . . 30 . Destroy Structure 76 | . . . . 56 20 Partial Spotted 45 | . . . . 45 . Lose Combat Pursuer 285 | . . . . 75 210 Influence Decreases 1254 | 10 7 . . 485 752 Entered New Map 80 | . . . . . 80 Time Decay 715 | 10 7 . . 365 333 Lost Part 205 | . . . . 110 95 Lost Ally 254 | . . . . 10 244 Squads Dispatched 13 | . 1 . . 10 2 Investigation 5 | . 1 . . 4 . Extermination 3 | . . . . 3 . Reinforcement 2 | . . . . . 2 Assault . | . . . . . . Garrison 3 | . . . . 3 . Intercept . | . . . . . . Searches Triggered . | . . . . . . Construction Impeded 1 | . . . . . 1 Haulers Reinforced . | . . . . . . Active Scanning Responses . | . . . . . . Cargo Convoy Interrupts . | . . . . . . Stealth | -11 -10 -10 -7 -5 -5 --------- Run | Yrd Mat Sub Scr Fac Ext Distress Signals 6 | . . . . 4 2 Communications Jammed 44 | . . . . 44 . Distress Signals 44 | . . . . 44 . Times Spotted 88 | . 1 1 6 38 42 Peak Tracking Total 8 | . 1 1 6 6 8 Tactical Retreats 12 | . . . . 4 8 Traps | -11 -10 -10 -7 -5 -5 ------- Run | Yrd Mat Sub Scr Fac Ext Traps Triggered 2 | . . 1 . 1 . Indirectly . | . . . . . . Trap Hack Attempts . | . . . . . . Triggered . | . . . . . . Disarmed . | . . . . . . Reprogrammed . | . . . . . . Reused . | . . . . . . Traps Extracted . | . . . . . . Installed . | . . . . . . Triggered . | . . . . . . Machines | -11 -10 -10 -7 -5 -5 ---------- Run | Yrd Mat Sub Scr Fac Ext Machines Disabled 4 | . . 1 . 2 1 Max in Single Turn 1 | . . 1 . 1 1 Garrison Access 1 | . . . . 1 . Machines Repaired . | . . . . . . Machines Dismantled . | . . . . . . Machines Sabotaged . | . . . . . . Overloaded Fab Kills . | . . . . . . Hacking | -11 -10 -10 -7 -5 -5 --------- Run | Yrd Mat Sub Scr Fac Ext Machines Accessed 30 | . 2 1 5 14 8 Terminals 17 | . 2 . . 7 8 Fabricators 1 | . . . . 1 . Repair Stations . | . . . . . . Recycling Units 3 | . . . . 3 . Scanalyzers 1 | . . . . 1 . Garrison Access 2 | . . . . 2 . Total Hacks 99 | . 8 9 33 28 21 Successful 71 | . 6 9 33 13 10 Failed 28 | . 2 . . 15 11 Catastrophic 5 | . . . . 5 . Database Lockouts . | . . . . . . Manual 24 | . 4 . . 9 11 Terminals 44 | . 8 . . 15 21 Fabricators 3 | . . . . 3 . Repair Stations . | . . . . . . Recycling Units 3 | . . . . 3 . Scanalyzers 2 | . . . . 2 . Garrison Access 5 | . . . . 5 . Terminal Hacks 58 | . 4 9 33 4 8 Record 49 | . 4 8 33 3 1 Part Schematic 1 | . . . . . 1 Prototype ID Bank 1 | . . . . . 1 Open Door 5 | . . . . . 5 Branch Access Points 1 | . . . . 1 . Proto ID Catalog 1 | . . 1 . . . Fabricator Hacks 1 | . . . . 1 . Network Status 1 | . . . . 1 . Repair Station Hacks . | . . . . . . Recycling Unit Hacks . | . . . . . . Scanalyzer 1 | . . . . 1 . Retrieve Study 1 | . . . . 1 . Garrison Access Hacks 1 | . . . . 1 . Seal Access 1 | . . . . 1 . Unauthorized Hacks 10 | . 2 . . 6 2 Terminals 7 | . 2 . . 3 2 Track 1 | . 1 . . . . Assimilate 1 | . . . . 1 . Botnet 5 | . 1 . . 2 2 Fabricators . | . . . . . . Repair Stations . | . . . . . . Recycling Units 3 | . . . . 3 . Fedlink 3 | . . . . 3 . Scanalyzers . | . . . . . . Garrison Access . | . . . . . . Data Cores Recovered . | . . . . . . Used . | . . . . . . Hacking Detections 18 | . 2 . . 10 6 Full Trace Events 1 | . . . . 1 . Feedback Events . | . . . . . . Feedback Blocked . | . . . . . . Robot Schematics Acquired . | . . . . . . Robots Built . | . . . . . . Authchips . | . . . . . . Time . | . . . . . . Total Robot Build Rating . | . . . . . . Part Schematics Acquired 1 | . . . . . 1 Parts Built . | . . . . . . Authchips . | . . . . . . Time . | . . . . . . Total Part Build Rating . | . . . . . . Part Studies Acquired 1 | . . . . 1 . Parts Repaired . | . . . . . . Time . | . . . . . . Parts Recycled . | . . . . . . Recycled Matter . | . . . . . . Retrieved Matter . | . . . . . . Retrieved Components . | . . . . . . Parts Scanalyzed . | . . . . . . Part Schematics Acquired . | . . . . . . Parts Damaged . | . . . . . . Bothacking | -11 -10 -10 -7 -5 -5 ------------ Run | Yrd Mat Sub Scr Fac Ext Used RIF Installer . | . . . . . . Robots Hacked 4 | . . . . 1 3 Non-combat 2 | . . . . 1 1 Combat 2 | . . . . . 2 Robot Hacks Applied 4 | . . . . 1 3 parse_system 2 | . . . . . 2 no_distress 2 | . . . . 1 1 Relay Couplers Released . | . . . . . . Fabnet Peak Effective % . | . . . . . . Robots Rewired 9 | . . . . . 9 Allies Hacked . | . . . . . . Hacks Repelled . | . . . . . . Allies | -11 -10 -10 -7 -5 -5 -------- Run | Yrd Mat Sub Scr Fac Ext Total Allies 18 | . . . . 1 17 Largest Group 8 | . . . . 1 8 Highest-Rated Group 339 | . . . . 26 339 Highest-Rated Ally 159 | . . . . 26 159 Total Orders 3 | . . . . . 3 STAY 2 | . . . . . 2 FOLLOW 1 | . . . . . 1 Ally Attacks 70 | . . . . . 70 Total Damage 1572 | . . . . . 1572 Kills 12 | . . . . . 12 Allies Corrupted . | . . . . . . Allies Melted . | . . . . . . Intel | -11 -10 -10 -7 -5 -5 ------- Run | Yrd Mat Sub Scr Fac Ext Active Infowar (turns) 2820 | 2 120 452 98 1054 1094 Optics 1470 | . . . . 376 1094 Sensors 233 | . . . 2 231 . Seismic 1348 | 2 120 452 96 678 . Jamming 300 | . . . . 300 . Robot Analysis Total . | . . . . . . Derelict Logs Recovered 2 | . . . 2 . . Drone Launches . | . . . . . . Drone Recoveries . | . . . . . . Exploration | -11 -10 -10 -7 -5 -5 ------------- Run | Yrd Mat Sub Scr Fac Ext Turns Passed 4848 | 80 120 452 1927 1175 1094 Spaces Moved 4698 | 33 130 335 1490 1367 1343 Core 122 | 4 . . . 2 116 Treads 127 | 29 8 72 8 10 . Legs 455 | . . . 55 400 . Wheels 1813 | . 122 263 1427 . 1 Hover 93 | . . . . 28 65 Flight 2088 | . . . . 927 1161 Fastest Speed 23 | 50 80 80 95 23 27 Average Speed 76 | 146 84 112 124 55 31 Slowest Speed 275 | 160 160 160 240 275 150 Overloaded Moves . | . . . . . . Propulsion Burnouts . | . . . . . . Robots Hopped 8 | . . . . 1 7 Potential Cave-ins . | . . . . . . Cave-ins Triggered . | . . . . . . Exploration Rate (%) 38 | 3 21 15 86 39 67 Regions Visited 5 Branch Regions 3 Pre-discovered Areas 1 | . . . . 1 . Known Exits Taken 1 | . . . . 1 . Unknown Exits Taken 4 | 1 1 1 1 . . Scrap Searched 6 | . . 4 2 . . Spaces Dug 33 | . . . . 28 5 Terrain Destroyed 33 | . . . . 28 5 Melee 32 | . . . . 27 5 Projectile 1 | . . . . 1 . AOE . | . . . . . . Terrain Rammed . | . . . . . . Walls Destroyed . | . . . . . . Machines Disabled . | . . . . . . Actions | -11 -10 -10 -7 -5 -5 --------- Run | Yrd Mat Sub Scr Fac Ext Total 5699 | 50 137 397 1568 1617 1930 Wait 598 | 3 2 43 17 60 473 Move 4677 | 32 129 334 1489 1364 1329 Hop 8 | . . . . 1 7 Pick Up 33 | 2 3 3 8 10 7 Fast Attach 78 | 7 . 2 19 35 15 Attach 9 | . . . . 6 3 Detach 7 | . . . 2 3 2 Swap 26 | . 3 2 1 7 13 Drop 69 | . . 4 25 24 16 Fire 56 | 6 . 9 . 13 28 Melee 131 | . . . . 94 37 Ram . | . . . . . . Kick 7 | . . . 7 . . Crush . | . . . . . . Escape Stasis . | . . . . . . Rewire . | . . . . . . Trap . | . . . . . . Miscellaneous . | . . . . . . Route ------- -11/Scrapyard -10/Materials -10/Subcaves -7/Scraptown (discovered 2 exits: *Fac x2) -5/Factory (discovered 6 exits: *Fac x2 / *Upp x2 / *Ext x2) -5/Extension History --------- Turn | Location | Event 3 | -11/Scrapyard | Discovered new exit (range 15) 81 | -11/Scrapyard | Entered Materials 82 | -10/Materials | Met a group of wandering Federalists 196 | -10/Materials | Discovered new exit (range 4) 201 | -10/Materials | Entered Subcaves 201 | -10/Subcaves | Accompanied by 1 ally 202 | -10/Subcaves | Continued accompanying wandering Federalists (5) 287 | -10/Subcaves | Visited 4L-MR0's lab 314 | -10/Subcaves | Build established: Mutant 460 | -10/Subcaves | Wandering Federalist uncovered a shortcut to Scraptown 559 | -10/Subcaves | Found Meta Core 653 | -10/Subcaves | Entered Scraptown 1033 | -7/Scraptown | Scanned Subdweller tech in exchange for log data 1037 | -7/Scraptown | Learned location of 1 exit from Factory 1038 | -7/Scraptown | Learned 12 Research zone layouts 1075 | -7/Scraptown | Visited The Evicted 1116 | -7/Scraptown | Heard Great Nut preacher, LISTEN AND RECITE! 1126 | -7/Scraptown | Visited TADAMA 1161 | -7/Scraptown | Visited SPCMW 1208 | -7/Scraptown | Visited Symbiants 1523 | -7/Scraptown | Visited Assassins FH 1562 | -7/Scraptown | Visited Spacefarers 1662 | -7/Scraptown | Visited IN-MT5's Study 1746 | -7/Scraptown | Discovered new exit (range 5) 1869 | -7/Scraptown | Visited UFD Registry 1869 | -7/Scraptown | Registered with UFD as "Wavelever" 1982 | -7/Scraptown | Visited Infowarlord's Domain 2022 | -7/Scraptown | Visited Modified Component R&D 2070 | -7/Scraptown | Visited Junk Repository 2100 | -7/Scraptown | Visited Observation Area 2250 | -7/Scraptown | Discovered new exit (range 3) 2295 | -7/Scraptown | Visited Curators Association 2334 | -7/Scraptown | Visited Scrapoid Pod Storage 2356 | -7/Scraptown | Visited Supply Room 2401 | -7/Scraptown | Met Optimus 2401 | -7/Scraptown | Accepted into 0bPrime 2569 | -7/Scraptown | Civil war broke out across Scraptown 2580 | -7/Scraptown | Entered Factory 2580 | -5/Factory | Evolved 10 slots: Propulsion x3, Utility x5, Weapon x2 2581 | -5/Factory | Identified exit to Factory 2604 | -5/Factory | Attached Meta Core, gained temporary slots: Propulsion, Utility, Weapon 2874 | -5/Factory | Garrison activated, responded to threat 3380 | -5/Factory | Lost 7 parts (5n2u) 3507 | -5/Factory | Identified exit to Upper Caves 3507 | -5/Factory | Identified exit to Extension 3524 | -5/Factory | Loaded intel: 8 recycling unit locations 3556 | -5/Factory | Learned location of Protoforge (-2) 3586 | -5/Factory | Discovered exit to Factory (range 13) 3755 | -5/Factory | Entered Extension 3774 | -5/Extension | Rescued a captive Derelict 3775 | -5/Extension | Rescued a captive Derelict 3862 | -5/Extension | Lost 4 allies 3941 | -5/Extension | Rescued a captive Derelict 3956 | -5/Extension | Rescued A7 3996 | -5/Extension | Spotted B-75 Beast 4428 | -5/Extension | Allies destroyed B-75 Beast 4430 | -5/Extension | Spotted B-75 Beast 4462 | -5/Extension | Extracted ID and sensor layout for unrecognized location from A7's data core 4479 | -5/Extension | Core integrity fell below 50% 4508 | -5/Extension | Rescued a captive Derelict 4509 | -5/Extension | Rescued a captive Derelict 4512 | -5/Extension | Lost 5 parts (3n1u1w) 4544 | -5/Extension | Core integrity fell below 20% 4545 | -5/Extension | Rescued a captive Derelict 4550 | -5/Extension | Rescued a captive Derelict 4555 | -5/Extension | System corruption reached 10% 4562 | -5/Extension | System corruption reached 30% 4569 | -5/Extension | Lost 3 parts (1n2w) 4580 | -5/Extension | Disrupted transfer network 4849 | -5/Extension | Destroyed by Y-64 Sentinel with KE Penetrator Last Messages --------------- 04727_ Acquired 15 matter. 04729_ System corrupted: Matter fused (-9). 04745_ System corrupted: Matter fused (-8). 04746_ Acquired 8 matter. 04748_ Acquired 9 matter. 04762_ System corrupted: Matter fused (-5). 04784_ System corrupted: Energy discharge (-253). 04785_ Acquired 5 matter. 04816_ System corrupted: Energy discharge (-247). 04831_ 93WVUWJZ7Z4QZ1|>RAOVXRV&L DKD2L4VKN:&X5 04842_ VTOL Module destroyed. 04842_ Dropped Ripper. 04844_ Slug penetrates Wall. 04845_ Imp. Gravmag System destroyed. 04847_ VTOL Module destroyed. 04847_ Penetrated by Slug. 04847_ Dropped Imp. Deuterium Engine. 04849_ Penetrated by Slug. Map ----- +----------------------------------------------------+ | | | | | | | | | | | | | | | | | | | | | | | | | | | | | | | | | | | ?????????????????????????????????????????????????? | | ?????????????????????????????????????????????????? | | ?????????????????????????????????????????????????? | | ?????####???????####?????????????????????????????? | | ?????# #???????# #?????????????????????????????? | | ????## ##?????## ##????????????????????????????? | | ????# T#?????# T#??????????????????????????? # | | ????### ########## #########################*"" !# | | ??????# """T""" [*=% Y@= % %%% % %R %% T # | | ??????# """ """ g########################[ # | | ####### %[#??????????????????????????? # | | = #????????????????????????????? | | ####### /#????????????????????????????? | | ?????## [% #????????????????????????????? | | ?????#" = = #???##???????????????????????? | | ??#####+##+##"##### ####"#???????????????????????? | | ??# ###^ % T #????????????????????????? | | ??# ] ### #????????????????????????? | | ??# ## ] ^ ^^ #????????????????????????? | | ??#! ! ### [ #????????????????????????? | | ??###########?##"" ""####????????????????????????? | | ???????????????#"""""#???????????????????????????? | | ???????????????#######???????????????????????????? | | ?????????????????????????????????????????????????? | | ?????????????????????????????????????????????????? | | ?????????????????????????????????????????????????? | | ?????????????????????????????????????????????????? | | ?????????????????????????????????????????????????? | | ?????????????????????????????????????????????????? | | ?????????????????????????????????????????????????? | | ?????????????????????????????????????????????????? | | ?????????????????????????????????????????????????? | | ?????????????????????????????????????????????????? | +----------------------------------------------------+ Best States ------------- Heat Dissipation 40 Energy Generation 18 Energy Capacity 650 Matter Stores 300 Matter Capacity 300 Sight Range 22 Robot Scan Range 15 Terrain Scan Density 10 Jamming Range 12 Additional Mass Support 9 Armor Coverage 150 Resistance: EM 15 Core Shielding 20 Evasion (%) 65 Melee Accuracy 13 Target Analysis 6 Core Analysis 6 Recoil Reduction 2 Offensive Hacking 12 Defensive Hacking 14 Item Schematics ----------------- Lgt. Armor Plating | -5/Extension | Hacked Robot Schematics ------------------ None Fabricated ------------ Nothing Repaired ---------- Nothing Studied --------- Power Sword | -5/Factory | Hacked Alien Tech Used ----------------- None Achievements -------------- A Problem For Future Me Analysis Probe Can't Catch Me Civilization 2243 Ew, Corruption For Emergencies Only Item+ Link The Feds Mistaken Identity Prison Break Spot Them First Strength In Numbers There's More Where That Came From Throw Away The Key Total Silence Uncivil War Challenges ------------ None Game ------ Seed StormMachineSabre Manual? 0 Play Time 01:46:20 Cumulative 6.5 hours Start 2025.11.22 @ 15:49:38 End 2025.11.22 @ 17:35:29 Sessions 1 Manual Loads 0 Difficulty Rogue Special Mode None Game No. 5 Rogue 5 Adventurer 0 Explorer 0 Win Type - Total 1 Types 1/0/0/0/0/0/0/0/0/0 Lore% 19 Gallery% 14 Achievement% 17 Wizard Run 0 Options --------- Layout 1 ASCII 0 Keyboard 0 Movement Mouse Keybinds 0 Fullscreen 1 Font 24/Smallcaps Map View 50x35 Zoom Use 0% Tactical HUD 1 Map Filters NONE Filters NONE Steam 1 RUN: e4a572c4-7d80-414e-bc48-30ee05a5fd8e